Cogmind - Beta 15 @@@ ROGUE MODE // 2025.09.26 @ 09:54:49 Player: Blue Result: Self-destructed Performance ------------- Evolutions (4) 2000 Regions Visited (4) 800 Robots Destroyed (7) 35 Value Destroyed (74) 74 Prototype IDs (0) 0 Alien Tech Used (0) 0 Bonus (0) 0 TOTAL SCORE: 2909 Bonus ------- None Cogmind --------- Core Integrity 828/850 Matter 300/300 Energy 250/250 System Corruption 0% Temperature Cool (0) Movement Walking (120) Location -6/Factory Parts ------- > --- POWER (1) -------- Ion Engine > --- PROPULSION (2) --- Aluminum Leg Aluminum Leg > --- UTILITY (2) ------ Small Storage Unit Seismic Detector > --- WEAPON (10) ------ Medium Laser Light Assault Rifle > --- INVENTORY (8) ---- Signal Interpreter Light Armor Plating Tractor Beam Peak State ------------ > --- POWER ------------ Ion Engine > --- PROPULSION ------- Aluminum Leg Aluminum Leg > --- UTILITY ---------- Small Storage Unit Tractor Beam > --- WEAPON ----------- Medium Laser Light Assault Rifle > --- INVENTORY -------- (None) [Rating: 7] Favorites ----------- Power Ion Engine Engine Ion Engine Propulsion Aluminum Leg Leg Aluminum Leg Utility Small Storage Unit Device Seismic Detector Storage Small Storage Unit Weapon Medium Laser Energy Gun Medium Laser Ballistic Gun Light Assault Rifle Build | -11 -10 -10 -9 -6 ------- Run | Yrd Mat Sub Scr Fac Slots Evolved 8 | . . . . 8 Power . | . . . . . Propulsion . | . . . . . Utility . | . . . . . Weapon 8 | . . . . 8 Parts Attached 8 | 8 . . . . Power 1 | 1 . . . . Engine 1 | 1 . . . . Core . | . . . . . Reactor . | . . . . . Propulsion 2 | 2 . . . . Treads . | . . . . . Leg 2 | 2 . . . . Wheel . | . . . . . Hover . | . . . . . Flight . | . . . . . Utility 3 | 3 . . . . Device 2 | 2 . . . . Storage 1 | 1 . . . . Processor . | . . . . . Hackware . | . . . . . Protection . | . . . . . Artifact . | . . . . . Weapon 2 | 2 . . . . Energy Gun 1 | 1 . . . . Energy Cannon . | . . . . . Ballistic Gun 1 | 1 . . . . Ballistic Cannon . | . . . . . Launcher . | . . . . . Special Weapon . | . . . . . Impact Weapon . | . . . . . Slashing Weapon . | . . . . . Piercing Weapon . | . . . . . Special Melee Weapon . | . . . . . Unidentified Prototypes . | . . . . . Parts Lost . | . . . . . Power . | . . . . . Propulsion . | . . . . . Utility . | . . . . . Weapon . | . . . . . Highest Loss Streak . | . . . . . To Critical Strikes . | . . . . . Average Backups 2 | . 2 3 3 3 Power . | . . . . . Propulsion . | . . . . . Utility 2 | . 2 3 3 3 Weapon . | . . . . . Tool/Special . | . . . . . Unused Backups 2 | . . . . 2 Power . | . . . . . Propulsion . | . . . . . Utility 2 | . . . . 2 Weapon . | . . . . . Tool/Special . | . . . . . Average Slot Usage (%) 97 | . 100 100 100 46 Engine 13 | . 14 14 14 6 Leg 27 | . 28 28 28 13 Device 13 | . 14 14 14 6 Storage 13 | . 14 14 14 6 Energy Gun 13 | . 14 14 14 6 Ballistic Gun 13 | . 14 14 14 6 Peak Build Rating 7 | 7 7 7 7 7 Average Rating 6 | 5 7 7 7 7 On Entrance 5 | . 7 7 7 7 Naked Turns . | . . . . . Heaviest Build 14 | 14 14 14 14 14 Greatest Support 20 | 20 20 20 20 20 Greatest Overweight (x) 4 | 4 . . . . Average Overweight (x) . | . . . . . Largest Inventory Capacity 8 | 8 8 8 8 8 Average Capacity 7 | 7 8 8 8 8 Most Carried 3 | 1 3 3 3 3 Average Carried 2 | . 2 3 3 3 Final Capacity 8 | 8 8 8 8 8 Final Carried 3 | 1 3 3 3 3 Class Distribution -------------------- 100% | Mutant Dominant Class ---------------- Mutant | -10/Materials Mutant | -10/Subcaves Mutant | -9/Scraptown Mutant | -6/Factory Resources | -11 -10 -10 -9 -6 ----------- Run | Yrd Mat Sub Scr Fac Matter Collected 303 | 288 . 15 . . Remotely 10 | 10 . . . . Salvage Created 206 | 167 . 39 . . Parts 17 | 13 . 4 . . Haulers Intercepted . | . . . . . Recyclers Shooed . | . . . . . Parts Field Recycled . | . . . . . Retrieved Matter . | . . . . . Parts Self-Destructed 10 | . . 10 . . Prevented . | . . . . . Kills | -11 -10 -10 -9 -6 ------- Run | Yrd Mat Sub Scr Fac Combat Hostiles Destroyed 1 | . . 1 . . Guns 1 | . . 1 . . Classes Destroyed 4 | 2 . 2 . . Tunneler 4 | 4 . . . . Recycler 1 | 1 . . . . Turret 1 | . . 1 . . Swarmer 1 | . . 1 . . Best Kill Streak 2 | 2 . 2 . . Combat Bots Only 1 | . . 1 . . Max Kills in Single Turn 1 | 1 . 1 . . Gunslinging . | . . . . . Exploded . | . . . . . Melee . | . . . . . Uniques/NPCs Destroyed . | . . . . . Combat | -11 -10 -10 -9 -6 -------- Run | Yrd Mat Sub Scr Fac Hostile Shots Fired 60 | . . 33 . 27 Missed 27 | . . 18 . 9 Hits 33 | . . 15 . 18 Projectile 33 | . . 15 . 18 Damage Taken 226 | . . 93 . 133 Core 34 | . . 12 . 22 Absorbed by Shields . | . . . . . Core Remaining (%) 97 | 100 . . 95 . Volleys Fired 23 | 18 . 5 . . Largest 2 | 2 . 2 . . Hottest 70 | 70 . 70 . . Shots Fired 46 | 36 . 10 . . Gun 46 | 36 . 10 . . Cannon . | . . . . . Launcher . | . . . . . Special . | . . . . . Kinetic 23 | 18 . 5 . . Thermal 23 | 18 . 5 . . Explosive . | . . . . . Electromagnetic . | . . . . . Robot Hit Streak 7 | 7 . 3 . . Robot Miss Streak 4 | 4 . 4 . . Penetration Max . | . . . . . Secondary Targets . | . . . . . Shots Hit Robots 23 | 19 . 4 . . Core Hits 14 | 10 . 4 . . Critical Kills . | . . . . . Critical Parts Destroyed . | . . . . . Critical Strikes 1 | 1 . . . . Burn 1 | 1 . . . . Melee Attacks . | . . . . . Impact . | . . . . . Slashing . | . . . . . Piercing . | . . . . . Sneak Attacks . | . . . . . Combat Hostiles . | . . . . . Follow-up Attacks . | . . . . . Damage Inflicted 249 | 189 . 53 . 7 Guns 242 | 189 . 53 . . Cannons . | . . . . . Explosions . | . . . . . Melee . | . . . . . Ramming 7 | . . . . 7 Kinetic 82 | 65 . 17 . . Thermal 160 | 124 . 36 . . Explosive . | . . . . . Electromagnetic . | . . . . . Impact . | . . . . . Slashing . | . . . . . Piercing . | . . . . . Highest Corruption . | . . . . . Average Corruption . | . . . . . Corruption Purged . | . . . . . Corruption Blocked . | . . . . . Overload Shots . | . . . . . Overflow Damage . | . . . . . Projectiles . | . . . . . Explosions . | . . . . . Melee . | . . . . . Knockbacks . | . . . . . Impact . | . . . . . Kinetic . | . . . . . Secondary . | . . . . . Self-Inflicted Damage . | . . . . . Shots . | . . . . . Rammed . | . . . . . Targets Rammed 1 | . . . . 1 Kicked 1 | . . . . 1 Crushed . | . . . . . Highest Temperature 90 | 90 . 13 . . Average Temperature 34 | 36 . 5 . . Received Heat Transfer 96 | . . 60 . 36 Siege Activations . | . . . . . Martial Activations . | . . . . . Shielding Activations . | . . . . . Robots Disrupted . | . . . . . Combat Hostiles . | . . . . . Robots Corrupted . | . . . . . Combat Hostiles . | . . . . . Parts Fried . | . . . . . Impact Corruptions . | . . . . . Robots Melted . | . . . . . Combat Hostiles . | . . . . . Parts Melted 3 | 3 . . . . Heat Transferred 555 | 444 . 111 . . Parts Sabotaged . | . . . . . Parts Stolen . | . . . . . Parts Stripped . | . . . . . Power Chain Reactions . | . . . . . Alert | -11 -10 -10 -9 -6 ------- Run | Yrd Mat Sub Scr Fac Maximum Alert Level . | . . . . . Low Security (%) 100 | 100 100 . . 100 Level 1 . | . . . . . Level 2 . | . . . . . Level 3 . | . . . . . Level 4 . | . . . . . Level 5 . | . . . . . High Security . | . . . . . Max Security . | . . . . . Peak Influence 7 | 5 7 . . . Initial . | . . . . . Average . | . . . . . Influence Increases 87 | 25 7 55 . . Destroy 0b10 Robot/C 40 | . . 40 . . Destroy 0b10 Robot/NC 25 | 25 . . . . Successful Hack 7 | . 7 . . . Lose Combat Pursuer 15 | . . 15 . . Influence Decreases 87 | 25 7 50 5 . Entered New Map 5 | . . . 5 . Time Decay 82 | 25 7 50 . . Squads Dispatched . | . . . . . Investigation . | . . . . . Extermination . | . . . . . Reinforcement . | . . . . . Assault . | . . . . . Garrison . | . . . . . Intercept . | . . . . . Searches Triggered . | . . . . . Construction Impeded . | . . . . . Haulers Reinforced . | . . . . . Active Scanning Responses . | . . . . . Cargo Convoy Interrupts . | . . . . . Stealth | -11 -10 -10 -9 -6 --------- Run | Yrd Mat Sub Scr Fac Distress Signals . | . . . . . Communications Jammed . | . . . . . Distress Signals . | . . . . . Times Spotted 8 | . . 7 . 1 Peak Tracking Total 5 | . . 5 . 1 Tactical Retreats 1 | . . 1 . . Traps | -11 -10 -10 -9 -6 ------- Run | Yrd Mat Sub Scr Fac Traps Triggered . | . . . . . Indirectly . | . . . . . Trap Hack Attempts . | . . . . . Triggered . | . . . . . Disarmed . | . . . . . Reprogrammed . | . . . . . Reused . | . . . . . Traps Extracted . | . . . . . Installed . | . . . . . Triggered . | . . . . . Machines | -11 -10 -10 -9 -6 ---------- Run | Yrd Mat Sub Scr Fac Machines Disabled . | . . . . . Max in Single Turn . | . . . . . Machines Repaired . | . . . . . Machines Dismantled . | . . . . . Machines Sabotaged . | . . . . . Overloaded Fab Kills . | . . . . . Hacking | -11 -10 -10 -9 -6 --------- Run | Yrd Mat Sub Scr Fac Machines Accessed 3 | . 1 2 . . Terminals 1 | . 1 . . . Fabricators . | . . . . . Repair Stations . | . . . . . Recycling Units . | . . . . . Scanalyzers . | . . . . . Garrison Access . | . . . . . Total Hacks 8 | . 5 3 . . Successful 5 | . 2 3 . . Failed 3 | . 3 . . . Catastrophic 1 | . 1 . . . Database Lockouts . | . . . . . Manual 1 | . 1 . . . Terminals 5 | . 5 . . . Fabricators . | . . . . . Repair Stations . | . . . . . Recycling Units . | . . . . . Scanalyzers . | . . . . . Garrison Access . | . . . . . Terminal Hacks 5 | . 2 3 . . Record 1 | . . 1 . . Robot Analysis 1 | . 1 . . . Open Door 1 | . . 1 . . Registered Components 1 | . 1 . . . Release Object 1 | . . 1 . . Fabricator Hacks . | . . . . . Repair Station Hacks . | . . . . . Recycling Unit Hacks . | . . . . . Scanalyzer . | . . . . . Garrison Access Hacks . | . . . . . Unauthorized Hacks . | . . . . . Terminals . | . . . . . Fabricators . | . . . . . Repair Stations . | . . . . . Recycling Units . | . . . . . Scanalyzers . | . . . . . Garrison Access . | . . . . . Data Cores Recovered . | . . . . . Used . | . . . . . Hacking Detections 1 | . 1 . . . Full Trace Events . | . . . . . Feedback Events . | . . . . . Feedback Blocked . | . . . . . Robot Schematics Acquired . | . . . . . Robots Built . | . . . . . Authchips . | . . . . . Time . | . . . . . Total Robot Build Rating . | . . . . . Part Schematics Acquired . | . . . . . Parts Built . | . . . . . Authchips . | . . . . . Time . | . . . . . Total Part Build Rating . | . . . . . Parts Repaired . | . . . . . Time . | . . . . . Parts Recycled . | . . . . . Recycled Matter . | . . . . . Retrieved Matter . | . . . . . Retrieved Components . | . . . . . Parts Scanalyzed . | . . . . . Part Schematics Acquired . | . . . . . Parts Damaged . | . . . . . Bothacking | -11 -10 -10 -9 -6 ------------ Run | Yrd Mat Sub Scr Fac Used RIF Installer . | . . . . . Robots Hacked . | . . . . . Non-combat . | . . . . . Combat . | . . . . . Robot Hacks Applied . | . . . . . Relay Couplers Released . | . . . . . Fabnet Peak Effective % . | . . . . . Robots Rewired . | . . . . . Allies Hacked . | . . . . . Hacks Repelled . | . . . . . Allies | -11 -10 -10 -9 -6 -------- Run | Yrd Mat Sub Scr Fac Total Allies . | . . . . . Largest Group . | . . . . . Highest-Rated Group . | . . . . . Highest-Rated Ally . | . . . . . Total Orders . | . . . . . Ally Attacks . | . . . . . Total Damage . | . . . . . Kills . | . . . . . Allies Corrupted . | . . . . . Allies Melted . | . . . . . Intel | -11 -10 -10 -9 -6 ------- Run | Yrd Mat Sub Scr Fac Active Infowar (turns) 1323 | 13 66 295 892 57 Seismic 1323 | 13 66 295 892 57 Robot Analysis Total 1 | . 1 . . . Derelict Logs Recovered . | . . . . . Drone Launches . | . . . . . Drone Recoveries . | . . . . . Exploration | -11 -10 -10 -9 -6 ------------- Run | Yrd Mat Sub Scr Fac Turns Passed 1553 | 243 66 295 892 57 Spaces Moved 1205 | 141 54 220 744 46 Core 17 | 17 . . . . Treads . | . . . . . Legs 1188 | 124 54 220 744 46 Wheels . | . . . . . Hover . | . . . . . Flight . | . . . . . Fastest Speed 50 | 50 120 120 120 120 Average Speed 120 | 128 120 120 120 120 Slowest Speed 250 | 250 120 120 120 120 Overloaded Moves . | . . . . . Propulsion Burnouts . | . . . . . Robots Hopped . | . . . . . Potential Cave-ins . | . . . . . Cave-ins Triggered . | . . . . . Exploration Rate (%) 20 | 10 13 21 56 3 Regions Visited 4 Branch Regions 2 Pre-discovered Areas 1 | . . 1 . . Known Exits Taken . | . . . . . Unknown Exits Taken 4 | 1 1 1 1 . Scrap Searched . | . . . . . Spaces Dug . | . . . . . Terrain Destroyed . | . . . . . Melee . | . . . . . Projectile . | . . . . . AOE . | . . . . . Terrain Rammed . | . . . . . Walls Destroyed . | . . . . . Machines Disabled . | . . . . . Actions | -11 -10 -10 -9 -6 --------- Run | Yrd Mat Sub Scr Fac Total 1254 | 167 55 242 743 47 Wait 17 | . . 17 . . Move 1201 | 140 53 219 743 46 Hop . | . . . . . Pick Up 2 | . 2 . . . Fast Attach 8 | 8 . . . . Attach . | . . . . . Detach 1 | 1 . . . . Swap . | . . . . . Drop . | . . . . . Fire 23 | 18 . 5 . . Melee . | . . . . . Ram . | . . . . . Kick 1 | . . . . 1 Crush . | . . . . . Escape Stasis . | . . . . . Rewire . | . . . . . Trap . | . . . . . Miscellaneous 1 | . . 1 . . Route ------- -11/Scrapyard -10/Materials -10/Subcaves (discovered 2 exits: [*Rec] / *Scr) -9/Scraptown -6/Factory (discovered 1 exit: [*Fac]) History --------- Turn | Location | Event 21 | -11/Scrapyard | Discovered new exit (range 15) 244 | -11/Scrapyard | Entered Materials 245 | -10/Materials | Met a group of wandering Federalists 286 | -10/Materials | Discovered new exit (range 12) 309 | -10/Materials | Build established: Mutant 310 | -10/Materials | Entered Subcaves 310 | -10/Subcaves | Accompanied by 1 ally 311 | -10/Subcaves | Continued accompanying wandering Federalists (6) 380 | -10/Subcaves | Released subatomizers from SUBCON Basin 460 | -10/Subcaves | Learned location of Zion (-6) 460 | -10/Subcaves | Met a Zionite searching for "candidates" 509 | -10/Subcaves | Lost 4 allies 511 | -10/Subcaves | Discovered new exit (range 15) 542 | -10/Subcaves | Wandering Federalist uncovered a shortcut to Scraptown 605 | -10/Subcaves | Entered Scraptown 693 | -9/Scraptown | Visited SPCMW 715 | -9/Scraptown | Visited Comm Corps 749 | -9/Scraptown | Discovered new exit (range 11) 1048 | -9/Scraptown | Visited Shadow of the Wyrm 1076 | -9/Scraptown | Visited TADAMA 1216 | -9/Scraptown | Visited Spacefarers 1304 | -9/Scraptown | Visited Red Mages 1371 | -9/Scraptown | Visited Cyclists 1497 | -9/Scraptown | Entered Factory 1497 | -6/Factory | Evolved 8 slots: Weapon x8 1543 | -6/Factory | Discovered new exit (range 9) 1554 | -6/Factory | Self-destructed Last Messages --------------- There must be another way... 01371_ LOCAL NARROWCAST: Cyclists. Leave your biases at the entryway, please. BV-ZJ2(c): A broad education is the foundation for a successful society, an important principle of the UFD! You won't find that elsewhere. 01381_ Connecting with UFD Synopsis... 01381_ Current location identified: Scraptown 01387_ LOCAL NARROWCAST: Reading Room. UFD members only. [Achievement: Executioner] PARAMETERS=WEAPON+8 LOCATION=UNKNOWN GOAL=ESCAPE 01543_ EXIT=FOUND 01546_ K-01 Serf collects debris. 01548_ ALERT: All DSF locations entering lockdown mode. 01553_ Kicked Y-54 Guardian. Map ----- +----------------------------------------------------+ | ?? #??????????????????? | | ?? #??????????????????? | | ?? #??????????????????? | | ?? #??????????????????? | | ?????########## ########??????????????????? | | ??????????????# #?????????????????????????? | | ??????????????# #?????????????????????????? | | ??????????????# +?????????????????????????? | | ??????????????# #?????????????????????????? | | ??????????????# #?????????????????????????? | | ??????????????# #?????????????????????????? | | ??????????????# #?????????????????????????? | | ???########+### #?????????????????????????? | | ? #?????????????????????????? | | ? #?????????????????????????? | | ? +?????????????????????????? | | ? #?????????????????????????? | | ?? #?????????????????????????? | | ??########+####### #?????????????????????????? | | ?????????????????# #?????????????????????????? | | ?????????????????# #?????????????????????????? | | ?????????????????# #?????????????????????????? | | ?????????????????# #??#######????????????????? | | ?????????????????# ##?# ####### #??????? | | ?????????????????# ### #??????? | | ?????????????????# @Y #??????? | | ?????????????????# # #??????? | | ?????????????????# # ##+#####+????????? | | ?????????????????# #######????????????????? | | ?????????????????+ #??????????????????????? | | ?????????????????# #??????????????????????? | | ?????????????????# #??????????????????????? | | ????????????????? ??????????????????????? | | ????????????????#########?????????????????????? | | ??????????????????????????????????????????????? | | ??????????????????????????????????????????????? | | ??????????????????????????????????????????????? | | | | | | | | | | | | | | | | | | | | | | | | | | | +----------------------------------------------------+ Best States ------------- Heat Dissipation 37 Energy Generation 10 Energy Capacity 250 Matter Stores 300 Matter Capacity 300 Sight Range 16 Terrain Scan Density 10 Evasion (%) 55 Item Schematics ----------------- None Robot Schematics ------------------ None Fabricated ------------ Nothing Repaired ---------- Nothing Alien Tech Used ----------------- None Achievements -------------- Executioner Challenges ------------ None Game ------ Seed PlasmaRemoteSpecial Manual? 0 Play Time 00:12:29 Cumulative 82.4 hours Start 2025.09.26 @ 09:15:19 End 2025.09.26 @ 09:54:49 Sessions 1 Manual Loads 0 Difficulty Rogue Special Mode None Game No. 52 Rogue 52 Adventurer 0 Explorer 0 Win Type - Total 1 Types 1/0/0/0/0/0/0/0/0/0 Lore% 30 Gallery% 41 Achievement% 39 Wizard Run 0 Options --------- Layout 1 ASCII 0 Keyboard 1 Movement Arrows Keybinds 0 Fullscreen 1 Font 24/Smallcaps Map View 50x35 Zoom Use 0% Tactical HUD 1 Map Filters NONE Filters NONE Steam 1 RUN: 8dae5892-d8f8-4e62-8147-2a4190b6367d